[Event "Late-Titled-Tuesday-Blitz-June-25-2024"]
[Site "Chess.com"]
[Date "2024.06.25"]
[Round "5"]
[White "ACollins05"]
[Black "UnTucopalaTimba"]
[Result "1-0"]
[WhiteElo "2416"]
[BlackElo "2134"]
[TimeControl "180+1"]
[EndTime "14:55:46 PDT"]
[Termination "ACollins05 won on time"]

1. Nf3 {[%clk 0:02:59.4]} 1... d5 {[%clk 0:02:57.4]} 2. e3 {[%clk 0:02:59.2]}
2... Nf6 {[%clk 0:02:55.8]} 3. b3 {[%clk 0:02:57.4]} 3... g6 {[%clk 0:02:51.9]}
4. Bb2 {[%clk 0:02:55.2]} 4... Bg7 {[%clk 0:02:51.5]} 5. d4 {[%clk 0:02:56.1]}
5... O-O {[%clk 0:02:50.4]} 6. c4 {[%clk 0:02:56.7]} 6... c6 {[%clk 0:02:49.9]}
7. Nc3 {[%clk 0:02:56.6]} 7... Bg4 {[%clk 0:02:45.9]} 8. Be2 {[%clk 0:02:56.5]}
8... e6 {[%clk 0:02:43.1]} 9. O-O {[%clk 0:02:56.2]} 9... Re8 {[%clk 0:02:41.2]}
10. Rc1 {[%clk 0:02:54.6]} 10... Nbd7 {[%clk 0:02:37.6]} 11. b4 {[%clk
0:02:54.4]} 11... Rc8 {[%clk 0:02:23.9]} 12. b5 {[%clk 0:02:52.3]} 12... dxc4
{[%clk 0:02:20.6]} 13. Bxc4 {[%clk 0:02:47.8]} 13... Nb6 {[%clk 0:02:19.8]} 14.
Be2 {[%clk 0:02:45.6]} 14... Qe7 {[%clk 0:02:00.8]} 15. bxc6 {[%clk 0:02:43.9]}
15... bxc6 {[%clk 0:01:56.7]} 16. Na4 {[%clk 0:02:39.2]} 16... Qb4 {[%clk
0:01:44.6]} 17. Nxb6 {[%clk 0:02:32]} 17... axb6 {[%clk 0:01:40.8]} 18. Qb3
{[%clk 0:02:21.3]} 18... Qxb3 {[%clk 0:01:30.8]} 19. axb3 {[%clk 0:02:22.2]}
19... Nd5 {[%clk 0:01:23.7]} 20. Ba3 {[%clk 0:02:21.3]} 20... e5 {[%clk
0:01:18.4]} 21. dxe5 {[%clk 0:02:17]} 21... Bxf3 {[%clk 0:01:15.6]} 22. Bxf3
{[%clk 0:02:17.9]} 22... Rxe5 {[%clk 0:01:14.3]} 23. Rfd1 {[%clk 0:02:15.6]}
23... Ne7 {[%clk 0:00:53]} 24. Rd7 {[%clk 0:02:02.1]} 24... c5 {[%clk
0:00:43.4]} 25. b4 {[%clk 0:01:59.9]} 25... Nc6 {[%clk 0:00:32.7]} 26. bxc5
{[%clk 0:01:53.3]} 26... bxc5 {[%clk 0:00:32]} 27. Rxc5 {[%clk 0:01:27.5]} 27...
Rxc5 {[%clk 0:00:29.1]} 28. Bxc5 {[%clk 0:01:28.4]} 28... Ne5 {[%clk 0:00:28.7]}
29. Rd5 {[%clk 0:01:20.9]} 29... Nxf3+ {[%clk 0:00:26.5]} 30. gxf3 {[%clk
0:01:21.8]} 30... Bf6 {[%clk 0:00:23.4]} 31. f4 {[%clk 0:01:21.6]} 31... Kg7
{[%clk 0:00:23.1]} 32. Kg2 {[%clk 0:01:21.9]} 32... h5 {[%clk 0:00:21.4]} 33.
Kf3 {[%clk 0:01:21.3]} 33... Re8 {[%clk 0:00:20.7]} 34. e4 {[%clk 0:01:20.8]}
34... Ra8 {[%clk 0:00:19.8]} 35. e5 {[%clk 0:01:20.1]} 35... Bh4 {[%clk
0:00:18]} 36. Rd7 {[%clk 0:01:18.6]} 36... Kg8 {[%clk 0:00:17.3]} 37. Bd4 {[%clk
0:01:16.5]} 37... Ra4 {[%clk 0:00:16.9]} 38. Ke3 {[%clk 0:01:03.7]} 38... Ra3+
{[%clk 0:00:16.2]} 39. Ke4 {[%clk 0:01:04.1]} 39... Ra4 {[%clk 0:00:16.1]} 40.
e6 {[%clk 0:00:53.8]} 40... fxe6 {[%clk 0:00:15.4]} 41. Rg7+ {[%clk 0:00:53.6]}
41... Kf8 {[%clk 0:00:15.1]} 42. Rxg6 {[%clk 0:00:54]} 42... Bxf2 {[%clk
0:00:13.9]} 43. Rxe6 {[%clk 0:00:34.9]} 43... Rxd4+ {[%clk 0:00:13.6]} 44. Kf5
{[%clk 0:00:35.2]} 44... Bg1 {[%clk 0:00:12.7]} 45. h4 {[%clk 0:00:32.1]} 45...
Bh2 {[%clk 0:00:12.3]} 46. Kg5 {[%clk 0:00:18.5]} 46... Bxf4+ {[%clk 0:00:11.4]}
47. Kxh5 {[%clk 0:00:18]} 47... Bg3 {[%clk 0:00:11.4]} 48. Rf6+ {[%clk
0:00:14.1]} 48... Kg7 {[%clk 0:00:10.6]} 49. Rg6+ {[%clk 0:00:14]} 49... Kf7
{[%clk 0:00:09.8]} 50. Rxg3 {[%clk 0:00:14.4]} 50... Kf8 {[%clk 0:00:06.6]} 51.
Kg5 {[%clk 0:00:13.5]} 51... Kg7 {[%clk 0:00:05.9]} 52. Ra3 {[%clk 0:00:09.5]}
52... Rd5+ {[%clk 0:00:05.3]} 53. Kg4 {[%clk 0:00:10]} 53... Kh6 {[%clk
0:00:04.7]} 54. Ra6+ {[%clk 0:00:09.1]} 54... Kh7 {[%clk 0:00:04.6]} 55. Re6
{[%clk 0:00:09.3]} 55... Rb5 {[%clk 0:00:03.5]} 56. Re4 {[%clk 0:00:08]} 56...
Kh6 {[%clk 0:00:03]} 57. Rc4 {[%clk 0:00:08.7]} 57... Rd5 {[%clk 0:00:02.9]} 58.
Rb4 {[%clk 0:00:07.9]} 58... Kg6 {[%clk 0:00:03.1]} 59. Re4 {[%clk 0:00:08.5]}
59... Kh6 {[%clk 0:00:03.3]} 60. Re6+ {[%clk 0:00:09]} 60... Kh7 {[%clk
0:00:03.5]} 61. Re4 {[%clk 0:00:09.9]} 61... Kg6 {[%clk 0:00:03.7]} 62. Ra4
{[%clk 0:00:10.3]} 62... Kh6 {[%clk 0:00:03.9]} 63. Rb4 {[%clk 0:00:08.7]} 63...
Kg6 {[%clk 0:00:04.1]} 64. h5+ {[%clk 0:00:09.4]} 64... Kh6 {[%clk 0:00:04]} 65.
Rb6+ {[%clk 0:00:09.3]} 65... Kh7 {[%clk 0:00:03.8]} 66. Rf6 {[%clk 0:00:09.2]}
66... Rc5 {[%clk 0:00:01.9]} 67. Rf4 {[%clk 0:00:08.6]} 67... Kh6 {[%clk
0:00:01.7]} 68. Rd4 {[%clk 0:00:08.3]} 1-0

[Event "Late-Titled-Tuesday-Blitz-June-25-2024"]
[Site "Chess.com"]
[Date "2024.06.25"]
[Round "5"]
[White "LidongW"]
[Black "wild3000"]
[Result "1-0"]
[WhiteElo "2349"]
[BlackElo "2518"]
[TimeControl "180+1"]
[EndTime "14:55:57 PDT"]
[Termination "LidongW won on time"]

1. e4 {[%clk 0:03:00.9]} 1... e6 {[%clk 0:02:27.8]} 2. d4 {[%clk 0:03:00.6]}
2... a6 {[%clk 0:02:27.3]} 3. c4 {[%clk 0:02:56.2]} 3... d6 {[%clk 0:02:26]} 4.
Nc3 {[%clk 0:02:56]} 4... Nf6 {[%clk 0:02:26.2]} 5. Nf3 {[%clk 0:02:56]} 5...
Be7 {[%clk 0:02:26.4]} 6. Bd3 {[%clk 0:02:56]} 6... O-O {[%clk 0:02:26.8]} 7. e5
{[%clk 0:02:56.4]} 7... dxe5 {[%clk 0:02:25.3]} 8. dxe5 {[%clk 0:02:57.3]} 8...
Nfd7 {[%clk 0:02:25.7]} 9. O-O {[%clk 0:02:57.5]} 9... Nc6 {[%clk 0:02:25.1]}
10. Re1 {[%clk 0:02:57.6]} 10... Nc5 {[%clk 0:02:17.8]} 11. Bc2 {[%clk
0:02:50.6]} 11... Qxd1 {[%clk 0:02:15.4]} 12. Rxd1 {[%clk 0:02:50.9]} 12... Nd7
{[%clk 0:02:04.3]} 13. Re1 {[%clk 0:02:49.4]} 13... Rd8 {[%clk 0:01:59.3]} 14.
a3 {[%clk 0:02:41.4]} 14... Nf8 {[%clk 0:01:52.9]} 15. Be3 {[%clk 0:02:37.3]}
15... Ng6 {[%clk 0:01:51.2]} 16. Bxg6 {[%clk 0:02:28.5]} 16... hxg6 {[%clk
0:01:50.7]} 17. b4 {[%clk 0:02:28.4]} 17... b6 {[%clk 0:01:47.1]} 18. Rad1
{[%clk 0:02:24.6]} 18... Bb7 {[%clk 0:01:47]} 19. h3 {[%clk 0:02:17.6]} 19...
Rxd1 {[%clk 0:01:30.1]} 20. Rxd1 {[%clk 0:02:17.5]} 20... Rd8 {[%clk 0:01:31]}
21. Kf1 {[%clk 0:02:13.7]} 21... Rxd1+ {[%clk 0:01:29.8]} 22. Nxd1 {[%clk
0:02:14.6]} 22... a5 {[%clk 0:01:26.8]} 23. b5 {[%clk 0:02:09.4]} 23... Nb8
{[%clk 0:01:26.6]} 24. a4 {[%clk 0:02:07.8]} 24... Nd7 {[%clk 0:01:17.5]} 25.
Bd4 {[%clk 0:02:05.6]} 25... Bc5 {[%clk 0:00:48.5]} 26. Bc3 {[%clk 0:01:10]}
26... Be4 {[%clk 0:00:39.2]} 27. Ke2 {[%clk 0:01:03.6]} 27... Bc2 {[%clk
0:00:33.5]} 28. Nb2 {[%clk 0:01:02.7]} 28... Ba3 {[%clk 0:00:29.1]} 29. Kd2
{[%clk 0:00:55]} 29... Be4 {[%clk 0:00:25.4]} 30. Nd3 {[%clk 0:00:48.7]} 30...
Bxd3 {[%clk 0:00:23.6]} 31. Kxd3 {[%clk 0:00:49.6]} 31... Nc5+ {[%clk
0:00:23.8]} 32. Ke3 {[%clk 0:00:45.9]} 32... Nxa4 {[%clk 0:00:23.7]} 33. Bd4
{[%clk 0:00:43.5]} 33... Bc5 {[%clk 0:00:13.6]} 34. Kd3 {[%clk 0:00:41.7]} 34...
Kf8 {[%clk 0:00:12.8]} 35. g4 {[%clk 0:00:34.9]} 35... Ke7 {[%clk 0:00:10]} 36.
h4 {[%clk 0:00:35.2]} 36... f6 {[%clk 0:00:09.2]} 37. h5 {[%clk 0:00:19.4]}
37... gxh5 {[%clk 0:00:09]} 38. gxh5 {[%clk 0:00:19.5]} 38... Bxd4 {[%clk
0:00:07.1]} 39. Kxd4 {[%clk 0:00:17.3]} 39... Kf7 {[%clk 0:00:05.4]} 40. Nd2
{[%clk 0:00:13.6]} 40... Nc5 {[%clk 0:00:05.5]} 41. f4 {[%clk 0:00:12.7]} 41...
f5 {[%clk 0:00:05.5]} 42. Nf3 {[%clk 0:00:09.4]} 42... Kg8 {[%clk 0:00:04.2]}
43. Ng5 {[%clk 0:00:10]} 43... a4 {[%clk 0:00:04.5]} 44. Kc3 {[%clk 0:00:09.9]}
44... Kf8 {[%clk 0:00:03.4]} 45. Nf3 {[%clk 0:00:09.2]} 45... Ke7 {[%clk
0:00:03.2]} 46. Kb4 {[%clk 0:00:08.4]} 46... Nd3+ {[%clk 0:00:03]} 47. Kxa4
{[%clk 0:00:08.7]} 47... Nxf4 {[%clk 0:00:03.9]} 48. Kb3 {[%clk 0:00:08.6]}
48... Nxh5 {[%clk 0:00:04.1]} 49. Kc3 {[%clk 0:00:08.9]} 49... Nf4 {[%clk
0:00:04.3]} 50. Kd4 {[%clk 0:00:09.1]} 50... Ng6 {[%clk 0:00:03.8]} 51. Ng5
{[%clk 0:00:09.4]} 51... Nf8 {[%clk 0:00:04.7]} 52. Ke3 {[%clk 0:00:09.2]} 52...
Nd7 {[%clk 0:00:04.3]} 53. Kd4 {[%clk 0:00:09.9]} 53... g6 {[%clk 0:00:04.5]}
54. Nh7 {[%clk 0:00:09.8]} 54... Nf8 {[%clk 0:00:03.5]} 55. Ng5 {[%clk 0:00:10]}
55... Kd7 {[%clk 0:00:03.2]} 56. Kc3 {[%clk 0:00:09.3]} 56... c5 {[%clk
0:00:03.2]} 57. Kd3 {[%clk 0:00:09.3]} 57... Ke7 {[%clk 0:00:03.4]} 58. Ke3
{[%clk 0:00:09.7]} 58... Nd7 {[%clk 0:00:03.6]} 59. Kf4 {[%clk 0:00:10.1]} 59...
Nf8 {[%clk 0:00:03.2]} 60. Ke3 {[%clk 0:00:09.8]} 60... Ke8 {[%clk 0:00:03.5]}
61. Kf4 {[%clk 0:00:10]} 61... Kd8 {[%clk 0:00:03.2]} 62. Ke3 {[%clk 0:00:10.2]}
62... Nd7 {[%clk 0:00:02.9]} 63. Kf4 {[%clk 0:00:10.5]} 63... Ke7 {[%clk
0:00:03.2]} 64. Nh7 {[%clk 0:00:10.1]} 64... Kf7 {[%clk 0:00:03.1]} 65. Ng5+
{[%clk 0:00:10.3]} 65... Kg7 {[%clk 0:00:03.8]} 66. Nh3 {[%clk 0:00:09.5]} 66...
Kh6 {[%clk 0:00:04.7]} 67. Ng5 {[%clk 0:00:09.7]} 67... Kh5 {[%clk 0:00:04.6]}
68. Nxe6 {[%clk 0:00:09.9]} 68... g5+ {[%clk 0:00:03.5]} 69. Nxg5 {[%clk
0:00:10]} 69... Nxe5 {[%clk 0:00:03.8]} 70. Kxf5 {[%clk 0:00:08.7]} 70... Nxc4
{[%clk 0:00:04.1]} 71. Ne4 {[%clk 0:00:07.1]} 71... Na3 {[%clk 0:00:03.9]} 72.
Nd6 {[%clk 0:00:06.3]} 72... c4 {[%clk 0:00:03]} 73. Ke4 {[%clk 0:00:06.7]}
73... Kg6 {[%clk 0:00:01.7]} 74. Kd4 {[%clk 0:00:06.9]} 1-0

[Event "Late-Titled-Tuesday-Blitz-June-25-2024"]
[Site "Chess.com"]
[Date "2024.06.25"]
[Round "5"]
[White "tarno17"]
[Black "CoachVadim"]
[Result "0-1"]
[WhiteElo "2174"]
[BlackElo "2405"]
[TimeControl "180+1"]
[EndTime "14:56:03 PDT"]
[Termination "CoachVadim won by resignation"]

1. e4 {[%clk 0:03:00.9]} 1... c5 {[%clk 0:02:59.6]} 2. Nf3 {[%clk 0:02:58.6]}
2... d6 {[%clk 0:02:59.7]} 3. Bb5+ {[%clk 0:02:57.3]} 3... Bd7 {[%clk
0:02:59.3]} 4. Bxd7+ {[%clk 0:02:56.4]} 4... Qxd7 {[%clk 0:03:00.2]} 5. O-O
{[%clk 0:02:56.6]} 5... Nc6 {[%clk 0:02:57.5]} 6. c3 {[%clk 0:02:45.8]} 6... Nf6
{[%clk 0:02:50.5]} 7. d3 {[%clk 0:02:43.2]} 7... g6 {[%clk 0:02:49.9]} 8. Nbd2
{[%clk 0:02:42.6]} 8... Bg7 {[%clk 0:02:50.4]} 9. Re1 {[%clk 0:02:42.8]} 9...
O-O {[%clk 0:02:50.7]} 10. Nf1 {[%clk 0:02:43.4]} 10... b5 {[%clk 0:02:50.6]}
11. Ng3 {[%clk 0:02:43.2]} 11... a5 {[%clk 0:02:49.2]} 12. Bf4 {[%clk
0:02:30.5]} 12... a4 {[%clk 0:02:39.3]} 13. Qd2 {[%clk 0:02:22.5]} 13... a3
{[%clk 0:02:37.2]} 14. b3 {[%clk 0:02:12.5]} 14... b4 {[%clk 0:02:12.4]} 15.
Rac1 {[%clk 0:01:48]} 15... bxc3 {[%clk 0:02:06.1]} 16. Rxc3 {[%clk 0:01:46.9]}
16... Ng4 {[%clk 0:02:04.8]} 17. h3 {[%clk 0:01:01.6]} 17... Bxc3 {[%clk
0:01:35]} 18. Qxc3 {[%clk 0:01:02.5]} 18... e5 {[%clk 0:01:30.2]} 19. Bd2 {[%clk
0:00:54.7]} 19... Nf6 {[%clk 0:01:23.3]} 20. Bh6 {[%clk 0:00:42.8]} 20... Rfc8
{[%clk 0:01:21.5]} 21. Qc1 {[%clk 0:00:38.4]} 21... Nd4 {[%clk 0:01:10.5]} 22.
Nh4 {[%clk 0:00:29.9]} 22... Ne8 {[%clk 0:00:47.9]} 23. Nhf5 {[%clk 0:00:19.2]}
23... f6 {[%clk 0:00:36.3]} 24. Ne3 {[%clk 0:00:10.8]} 24... Ng7 {[%clk
0:00:30.5]} 25. Nd5 {[%clk 0:00:10.2]} 25... Qe6 {[%clk 0:00:28.6]} 26. Bxg7
{[%clk 0:00:09.5]} 26... Kxg7 {[%clk 0:00:28.6]} 27. Re3 {[%clk 0:00:08.4]}
27... Ra7 {[%clk 0:00:25.8]} 28. Ne2 {[%clk 0:00:06.3]} 28... Nxb3 {[%clk
0:00:25.4]} 29. axb3 {[%clk 0:00:05.7]} 29... a2 {[%clk 0:00:26.3]} 30. Qa1
{[%clk 0:00:05.5]} 30... Rb8 {[%clk 0:00:25.4]} 31. Nc1 {[%clk 0:00:05.8]} 31...
Qd7 {[%clk 0:00:24.5]} 32. Re2 {[%clk 0:00:05.4]} 32... Qb5 {[%clk 0:00:24.1]}
33. Rxa2 {[%clk 0:00:05.8]} 33... Rxa2 {[%clk 0:00:23.2]} 34. Qxa2 {[%clk
0:00:06.4]} 34... Qb7 {[%clk 0:00:23.4]} 35. Qb2 {[%clk 0:00:04.6]} 35... Ra8
{[%clk 0:00:23.4]} 36. Kh2 {[%clk 0:00:04.7]} 36... Qa7 {[%clk 0:00:23]} 37. Ne2
{[%clk 0:00:03.9]} 37... Qa1 {[%clk 0:00:23.1]} 38. Qxa1 {[%clk 0:00:03.4]}
38... Rxa1 {[%clk 0:00:24]} 39. f4 {[%clk 0:00:02]} 39... Rd1 {[%clk 0:00:21.9]}
40. fxe5 {[%clk 0:00:01.9]} 40... fxe5 {[%clk 0:00:22.6]} 41. Ng3 {[%clk
0:00:01.2]} 41... Rxd3 {[%clk 0:00:22.8]} 42. Nb6 {[%clk 0:00:01.3]} 42... Rxb3
{[%clk 0:00:22.8]} 43. Nc4 {[%clk 0:00:01.7]} 43... Rd3 {[%clk 0:00:21.9]} 44.
h4 {[%clk 0:00:01.3]} 44... h5 {[%clk 0:00:21.4]} 45. Ne2 {[%clk 0:00:01.5]}
45... Rd1 {[%clk 0:00:20.8]} 46. Ng3 {[%clk 0:00:01]} 46... Kf6 {[%clk 0:00:21]}
47. Nb6 {[%clk 0:00:01.4]} 47... Ke6 {[%clk 0:00:20.7]} 48. Nd5 {[%clk
0:00:02.3]} 48... c4 {[%clk 0:00:19.2]} 49. Ne2 {[%clk 0:00:02.4]} 49... Rd3
{[%clk 0:00:17.6]} 50. Nec3 {[%clk 0:00:02.6]} 50... Kd7 {[%clk 0:00:13.3]} 51.
g3 {[%clk 0:00:03.1]} 51... Kc6 {[%clk 0:00:13.3]} 52. Kh3 {[%clk 0:00:02.8]}
52... Kc5 {[%clk 0:00:13.7]} 53. Ne2 {[%clk 0:00:02.5]} 53... Kb5 {[%clk
0:00:10.5]} 54. Nec3+ {[%clk 0:00:02.2]} 54... Kc5 {[%clk 0:00:10.4]} 55. Ne2
{[%clk 0:00:02.3]} 55... Rd2 {[%clk 0:00:10.9]} 56. Nec3 {[%clk 0:00:02.5]}
56... Rc2 {[%clk 0:00:11.1]} 57. g4 {[%clk 0:00:01.8]} 57... Kd4 {[%clk
0:00:10.6]} 58. gxh5 {[%clk 0:00:01.9]} 58... gxh5 {[%clk 0:00:11.5]} 59. Nb5+
{[%clk 0:00:01.6]} 59... Kxe4 {[%clk 0:00:11.1]} 60. Ndc7 {[%clk 0:00:01]} 60...
d5 {[%clk 0:00:10]} 61. Nd6+ {[%clk 0:00:01.2]} 61... Kd4 {[%clk 0:00:09.4]} 62.
Kg3 {[%clk 0:00:01.4]} 62... e4 {[%clk 0:00:09.4]} 63. Kf4 {[%clk 0:00:01]}
63... Rf2+ {[%clk 0:00:09.3]} 64. Kg3 {[%clk 0:00:01.6]} 64... e3 {[%clk
0:00:09.9]} 65. Nf5+ {[%clk 0:00:01.9]} 65... Kd3 {[%clk 0:00:09.9]} 66. Nxd5
{[%clk 0:00:02.4]} 66... Rxf5 {[%clk 0:00:09.8]} 67. Nb4+ {[%clk 0:00:01.9]}
67... Ke4 {[%clk 0:00:09.1]} 68. Nc2 {[%clk 0:00:02.1]} 68... e2 {[%clk
0:00:09.5]} 69. Ne1 {[%clk 0:00:01.9]} 69... Rf1 {[%clk 0:00:09.7]} 70. Ng2
{[%clk 0:00:01.9]} 70... Rg1 {[%clk 0:00:09.9]} 71. Kf2 {[%clk 0:00:02.1]} 71...
Rxg2+ {[%clk 0:00:10.3]} 72. Kxg2 {[%clk 0:00:02.7]} 72... e1=Q {[%clk
0:00:10.5]} 73. Kh2 {[%clk 0:00:03.3]} 73... Kf3 {[%clk 0:00:10.4]} 0-1

[Event "Late-Titled-Tuesday-Blitz-June-25-2024"]
[Site "Chess.com"]
[Date "2024.06.25"]
[Round "5"]
[White "DenLaz"]
[Black "LastGladiator1"]
[Result "1-0"]
[WhiteElo "3129"]
[BlackElo "2983"]
[TimeControl "180+1"]
[EndTime "14:56:04 PDT"]
[Termination "DenLaz won by resignation"]

1. d4 {[%clk 0:03:00.9]} 1... d5 {[%clk 0:02:57.5]} 2. c4 {[%clk 0:03:01.2]}
2... c6 {[%clk 0:02:57.7]} 3. Nf3 {[%clk 0:03:01.6]} 3... Nf6 {[%clk 0:02:57.5]}
4. Qc2 {[%clk 0:03:02.2]} 4... dxc4 {[%clk 0:02:53.2]} 5. Qxc4 {[%clk
0:03:02.2]} 5... Bg4 {[%clk 0:02:33.1]} 6. Nc3 {[%clk 0:03:01]} 6... e6 {[%clk
0:02:27.5]} 7. e4 {[%clk 0:03:00.2]} 7... Bxf3 {[%clk 0:02:19.1]} 8. gxf3 {[%clk
0:03:00.1]} 8... Nbd7 {[%clk 0:02:19.7]} 9. Be3 {[%clk 0:03:00]} 9... a5 {[%clk
0:02:11.7]} 10. Qd3 {[%clk 0:02:56.7]} 10... e5 {[%clk 0:02:04.7]} 11. O-O-O
{[%clk 0:02:52.2]} 11... Qc7 {[%clk 0:01:57.2]} 12. Bh3 {[%clk 0:02:51.1]} 12...
exd4 {[%clk 0:01:28.7]} 13. Bxd4 {[%clk 0:02:50]} 13... Nc5 {[%clk 0:01:05.6]}
14. Qe3 {[%clk 0:02:22.6]} 14... Nfd7 {[%clk 0:01:02.7]} 15. Kb1 {[%clk
0:02:19.3]} 15... Ne6 {[%clk 0:00:38.9]} 16. Bxe6 {[%clk 0:02:16.9]} 16... fxe6
{[%clk 0:00:39]} 17. Qg5 {[%clk 0:01:59.7]} 17... e5 {[%clk 0:00:37.4]} 18. Be3
{[%clk 0:02:00]} 18... g6 {[%clk 0:00:28.1]} 19. h4 {[%clk 0:01:54.5]} 19... Be7
{[%clk 0:00:24.5]} 20. Qg4 {[%clk 0:01:55.1]} 20... O-O-O {[%clk 0:00:23.2]} 21.
h5 {[%clk 0:01:39.3]} 21... gxh5 {[%clk 0:00:16.7]} 22. Rxh5 {[%clk 0:01:39.1]}
22... Kb8 {[%clk 0:00:17]} 23. Qe6 {[%clk 0:01:39.8]} 23... Rhe8 {[%clk
0:00:12.8]} 24. Qc4 {[%clk 0:00:53.7]} 24... Nf6 {[%clk 0:00:09.7]} 25. Rhh1
{[%clk 0:00:50.9]} 25... Rxd1+ {[%clk 0:00:09.2]} 26. Rxd1 {[%clk 0:00:50.6]}
26... Rd8 {[%clk 0:00:09.6]} 27. Rh1 {[%clk 0:00:40.5]} 27... Qd6 {[%clk
0:00:04.1]} 28. Kc2 {[%clk 0:00:38.3]} 28... b5 {[%clk 0:00:03.3]} 29. Qe2
{[%clk 0:00:36]} 29... Qe6 {[%clk 0:00:02.3]} 30. b3 {[%clk 0:00:30.5]} 30...
Kb7 {[%clk 0:00:02.2]} 31. Nxb5 {[%clk 0:00:24.9]} 31... cxb5 {[%clk 0:00:02.8]}
32. Qxb5+ {[%clk 0:00:25.6]} 32... Kc8 {[%clk 0:00:03.4]} 33. Kb2 {[%clk
0:00:22.5]} 33... Rd7 {[%clk 0:00:03.8]} 34. Qxa5 {[%clk 0:00:22.1]} 34... Rc7
{[%clk 0:00:03.7]} 35. Qa8+ {[%clk 0:00:20.2]} 35... Kd7 {[%clk 0:00:03.8]} 36.
Rd1+ {[%clk 0:00:20.9]} 36... Bd6 {[%clk 0:00:04.4]} 37. a4 {[%clk 0:00:17.4]}
37... Qe7 {[%clk 0:00:04]} 38. a5 {[%clk 0:00:16.3]} 38... Ke6 {[%clk
0:00:04.6]} 39. Qa6 {[%clk 0:00:13.5]} 39... Qd7 {[%clk 0:00:03.4]} 40. Qb6
{[%clk 0:00:09.2]} 40... Rc6 {[%clk 0:00:03.5]} 41. Qa7 {[%clk 0:00:03.5]} 41...
Qxa7 {[%clk 0:00:03]} 42. Bxa7 {[%clk 0:00:03.6]} 42... Ra6 {[%clk 0:00:02.5]}
43. Bb6 {[%clk 0:00:04]} 43... Nd7 {[%clk 0:00:02.7]} 44. Bd8 {[%clk 0:00:04.3]}
44... Be7 {[%clk 0:00:02.6]} 45. Bxe7 {[%clk 0:00:04.4]} 45... Kxe7 {[%clk
0:00:03.5]} 46. b4 {[%clk 0:00:05.2]} 46... Ke6 {[%clk 0:00:03.7]} 47. Rh1
{[%clk 0:00:04]} 47... Nf6 {[%clk 0:00:03.7]} 48. Kb3 {[%clk 0:00:04.6]} 48...
Rd6 {[%clk 0:00:04]} 49. b5 {[%clk 0:00:04.8]} 49... Rd3+ {[%clk 0:00:04]} 50.
Kc4 {[%clk 0:00:04.7]} 50... Rxf3 {[%clk 0:00:04.7]} 51. a6 {[%clk 0:00:04.9]}
51... Nxe4 {[%clk 0:00:03.5]} 52. a7 {[%clk 0:00:04.5]} 52... Ra3 {[%clk
0:00:04]} 53. b6 {[%clk 0:00:05]} 53... Nd6+ {[%clk 0:00:04.3]} 54. Kb4 {[%clk
0:00:05.5]} 54... Ra6 {[%clk 0:00:04.1]} 55. Rh6+ {[%clk 0:00:05.9]} 55... Kd5
{[%clk 0:00:02.3]} 56. Rxd6+ {[%clk 0:00:06.5]} 56... Kxd6 {[%clk 0:00:02.5]}
57. b7 {[%clk 0:00:07.2]} 57... Rb6+ {[%clk 0:00:02.3]} 58. Kc4 {[%clk
0:00:07.3]} 58... Rxb7 {[%clk 0:00:02.5]} 59. a8=Q {[%clk 0:00:07.9]} 59... Rc7+
{[%clk 0:00:03.1]} 60. Kd3 {[%clk 0:00:08.3]} 60... Re7 {[%clk 0:00:03.8]} 61.
Ke4 {[%clk 0:00:08.2]} 61... Ke6 {[%clk 0:00:04.2]} 62. Qa6+ {[%clk 0:00:08.8]}
62... Kf7 {[%clk 0:00:04.4]} 63. Kf5 {[%clk 0:00:09.5]} 63... e4 {[%clk
0:00:05]} 64. Qf6+ {[%clk 0:00:09.5]} 64... Ke8 {[%clk 0:00:05.7]} 65. Qd6
{[%clk 0:00:09.2]} 65... Kf7 {[%clk 0:00:05.8]} 66. Qd5+ {[%clk 0:00:07.4]}
66... Kg7 {[%clk 0:00:06]} 67. Kg5 {[%clk 0:00:07.3]} 67... h6+ {[%clk
0:00:03.1]} 68. Kg4 {[%clk 0:00:07.2]} 68... Kg6 {[%clk 0:00:02.2]} 69. Qd6+
{[%clk 0:00:07.5]} 69... Kf7 {[%clk 0:00:02.8]} 70. Qxh6 {[%clk 0:00:07.7]}
70... Re6 {[%clk 0:00:03.4]} 71. Qh7+ {[%clk 0:00:08.1]} 71... Kf6 {[%clk
0:00:03.8]} 72. Kf4 {[%clk 0:00:08.2]} 72... Re7 {[%clk 0:00:04.3]} 73. Qh6+
{[%clk 0:00:08.1]} 73... Kf7 {[%clk 0:00:04.7]} 74. Kf5 {[%clk 0:00:08.7]} 74...
Ke8 {[%clk 0:00:03.7]} 75. Qd6 {[%clk 0:00:09.3]} 75... Kf7 {[%clk 0:00:03.8]}
76. Qxe7+ {[%clk 0:00:07.1]} 76... Kxe7 {[%clk 0:00:04.7]} 77. Kxe4 {[%clk
0:00:07.7]} 1-0